fUST/lending_fUST_20250611
["ID","MTS","AMOUNT","RATE_DAILY","PERIOD"]
[365331966,1749604240615,-460.0,0.00021917,4]
[365331969,1749604240625,-460.0,0.00021917,4]
[365331970,1749604240634,-3493.75,0.00021917,4]
[365331973,1749604240643,-460.0,0.00021917,4]
[365331974,1749604240653,-460.0,0.00021917,4]
[365331976,1749604240662,-460.0,0.00021917,4]
[365331978,1749604240671,-460.0,0.00021917,4]
[365331980,1749604240681,-634.33,0.00021917,4]
[365331982,1749604240690,-757.39,0.00021917,4]
[365331984,1749604240699,-1386.6,0.00021917,4]
[365331986,1749604240709,-460.0,0.00021917,4]
[365331988,1749604240718,-367.06370267,0.00021917,4]
[365331990,1749604240727,-1629.77,0.00021917,4]
[365331992,1749604240737,-460.0,0.00021917,4]
[365331994,1749604240746,-460.0,0.00021917,4]
[365331996,1749604240755,-460.0,0.00021917,4]
[365331998,1749604240765,-460.0,0.00021917,4]
[365332000,1749604240774,-460.0,0.00021917,4]
[365332002,1749604240783,-1458.59,0.00021917,4]
[365332004,1749604240793,-460.0,0.00021917,4]
[365332006,1749604240801,-460.0,0.00021917,2]
[365332008,1749604240811,-2152.55,0.00021917,4]
[365332010,1749604240820,-460.0,0.00021917,4]
[365332012,1749604240829,-460.0,0.00021917,4]
[365332014,1749604240838,-460.0,0.00021917,4]
[365332016,1749604240847,-460.0,0.00021917,4]
[365332018,1749604240857,-399.89000075,0.00021917,4]
[365332020,1749604240866,-2065.67,0.00021917,4]
[365332022,1749604240875,-460.0,0.00021917,4]
[365332023,1749604240884,-1381.68,0.00021917,4]
[365332026,1749604240894,-460.0,0.00021917,4]
[365332027,1749604240904,-2924.39,0.00021917,4]
[365332029,1749604240914,-460.0,0.00021917,4]
[365332032,1749604240923,-3153.75,0.00021917,4]
[365332034,1749604240932,-407.34028706,0.00021917,4]
[365332036,1749604240942,-708.66,0.00021917,4]
[365332038,1749604240951,-460.0,0.00021917,4]
[365332039,1749604240961,-480.0,0.00021917,4]
[365332041,1749604240970,-853.41,0.00021917,4]
[365332044,1749604240980,-1263.11,0.00021917,4]
[365332046,1749604240989,-460.0,0.00021917,4]
[365332048,1749604240998,-172.88115435,0.00021917,4]
[365332050,1749604241007,-460.0,0.00021917,4]
[365332052,1749604241016,-460.0,0.00021917,4]
[365332054,1749604241025,-460.0,0.00021917,4]
[365332056,1749604241034,-460.0,0.00021917,4]
[365332057,1749604241043,-460.0,0.00021917,4]
[365332059,1749604241052,-460.0,0.00021917,4]
[365332061,1749604241062,-151.0,0.00021918,2]
[365332063,1749604241071,-151.0,0.00021918,2]
[365332065,1749604241080,-151.0,0.00021918,2]
[365332067,1749604241089,-151.0,0.00021918,2]
[365332069,1749604241098,-151.0,0.00021918,2]
[365332071,1749604241107,-151.0,0.00021918,2]
[365332073,1749604241117,-151.0,0.00021918,2]
[365332075,1749604241126,-151.0,0.00021918,2]
[365332077,1749604241136,-151.0,0.00021918,2]
[365332079,1749604241145,-151.0,0.00021918,2]
[365332081,1749604241156,-151.0,0.00021918,2]
[365332083,1749604241166,-151.0,0.00021918,2]
[365332085,1749604241175,-151.0,0.00021918,2]
[365332087,1749604241184,-151.0,0.00021918,2]
[365332089,1749604241194,-151.0,0.00021918,2]
[365332091,1749604241203,-151.0,0.00021918,2]
[365332093,1749604241212,-151.0,0.00021918,2]
[365332095,1749604241221,-151.0,0.00021918,2]
[365332097,1749604241230,-151.0,0.00021918,2]
[365332099,1749604241238,-151.0,0.00021918,2]
[365332101,1749604241248,-151.0,0.00021918,2]
[365332103,1749604241257,-151.0,0.00021918,2]
[365332105,1749604241266,-151.0,0.00021918,2]
[365332107,1749604241275,-238.40713592,0.00021918,2]
[365332109,1749604241284,-503.73758269,0.00021921,2]
[365332111,1749604241293,-1000.0,0.00021921,2]
[365332113,1749604241303,-1000.0,0.00021921,2]
[365332115,1749604241311,-500.0,0.00021973,2]
[365332117,1749604241320,-500.0,0.00021973,2]
[365332128,1749604241418,-500.0,0.00021973,2]
[365332130,1749604241429,-500.0,0.00021973,2]
[365332132,1749604241438,-500.0,0.00021973,2]
[365332134,1749604241447,-600.0,0.00021973,2]
[365332136,1749604241457,-500.0,0.00021973,2]
[365332138,1749604241466,-500.0,0.00021973,2]
[365332140,1749604241475,-500.0,0.00021973,2]
[365332142,1749604241485,-352.94100457,0.00021973,2]
[365332144,1749604241495,-500.0,0.00021973,2]
[365332146,1749604241504,-2078.82461537,0.00021982,2]
[365332148,1749604241514,-54711.3,0.00022,7]
[365332150,1749604241526,-213.1263252,0.00022,7]
[365332152,1749604241538,-842.5625,0.00022,7]
[365332154,1749604241547,-11858.11761888,0.00022,7]
[365332156,1749604241557,-2053.68625178,0.00022,10]
[365332158,1749604241567,-260.95645424,0.00022079,2]
[365332160,1749604241576,-3000.0,0.000221,2]
[365332162,1749604241585,-3000.0,0.0002211,2]
[365332164,1749604241595,-3000.0,0.0002212,2]
[365332166,1749604241605,-3000.0,0.0002213,2]
[365332168,1749604241614,-3000.0,0.0002214,2]
[365332170,1749604241624,-3000.0,0.0002215,2]
[365332172,1749604241634,-700.0,0.0002216,2]
[365332174,1749604241643,-3000.0,0.0002216,2]
[365332176,1749604241655,-5700.745258,0.0002217,2]
[365332178,1749604241666,-360.0,0.00022191,4]
[365332180,1749604241676,-460.0,0.00022191,4]
[365332182,1749604241686,-310.0,0.00022191,4]
[365332184,1749604241696,-460.0,0.00022191,4]
[365332186,1749604241706,-300.0,0.00022191,4]
[365332188,1749604241716,-460.0,0.00022191,4]
[365332190,1749604241726,-460.0,0.00022191,4]
[365332192,1749604241736,-460.0,0.00022191,4]
[365332194,1749604241745,-460.0,0.00022191,4]
[365332196,1749604241755,-460.0,0.00022191,4]
[365332198,1749604241764,-460.0,0.00022191,4]
[365332199,1749604241775,-300.0,0.00022191,4]
[365332201,1749604241783,-460.0,0.00022191,4]
[365332203,1749604241793,-460.0,0.00022191,4]
[365332205,1749604241803,-460.0,0.00022191,4]
[365332207,1749604241812,-460.0,0.00022191,4]
[365332209,1749604241821,-460.0,0.00022191,4]
[365332211,1749604241831,-460.0,0.00022191,4]
[365332213,1749604241840,-151.0,0.00022191,7]
[365332215,1749604241850,-1316.41,0.00022191,4]
[365332217,1749604241859,-460.0,0.00022191,4]
[365332219,1749604241869,-460.0,0.00022191,4]
[365332221,1749604241878,-460.0,0.00022191,4]
[365332223,1749604241887,-460.0,0.00022191,4]
[365332225,1749604241897,-460.0,0.00022191,4]
[365332227,1749604241909,-360.0,0.00022191,4]
[365332229,1749604241918,-460.0,0.00022191,4]
[365332231,1749604241927,-460.0,0.00022191,4]
[365332233,1749604241937,-3287.54,0.00022191,4]
[365332235,1749604241946,-151.0,0.00022191,7]
[365332237,1749604241955,-460.0,0.00022191,4]
[365332239,1749604241965,-460.0,0.00022191,4]
[365332241,1749604241974,-2396.208569,0.00022191,2]
[365332243,1749604241983,-445.00232136,0.00022191,4]
[365332245,1749604241993,-328.15956243,0.00022191,4]
[365332247,1749604242003,-2396.208569,0.00022191,2]
[365332249,1749604242012,-460.0,0.00022191,4]
[365332251,1749604242022,-460.0,0.00022191,4]
[365332253,1749604242031,-853.23,0.00022191,4]
[365332255,1749604242041,-460.0,0.00022191,4]
[365332257,1749604242050,-1506.51,0.00022191,4]
[365332259,1749604242059,-460.0,0.00022191,4]
[365332261,1749604242069,-460.0,0.00022191,4]
[365332263,1749604242078,-410.12020817,0.00022191,4]
[365332265,1749604242088,-460.0,0.00022191,4]
[365332267,1749604242098,-699.19,0.00022191,4]
[365332269,1749604242107,-578.08,0.00022191,4]
[365332271,1749604242116,-151.0,0.00022191,7]
[365332273,1749604242126,-460.0,0.00022191,4]
[365332275,1749604242135,-460.0,0.00022191,4]
[365332276,1749604242144,-298.559307,0.00022191,7]
[365332277,1749604242155,-320.0,0.00022191,4]
[365332278,1749604242164,-460.0,0.00022191,4]
[365332279,1749604242173,-151.0,0.00022191,7]
[365332280,1749604242183,-460.0,0.00022191,4]
[365332281,1749604242192,-460.0,0.00022191,4]
[365332282,1749604242201,-460.0,0.00022191,4]
[365332283,1749604242210,-460.0,0.00022191,4]
[365332284,1749604242220,-460.0,0.00022191,4]
[365332285,1749604242229,-3493.75,0.00022191,4]
[365332286,1749604242239,-460.0,0.00022191,4]
[365332287,1749604242248,-460.0,0.00022191,4]
[365332288,1749604242258,-460.0,0.00022191,4]
[365332289,1749604242268,-252.298943,0.00022191,7]
[365332290,1749604242277,-310.0,0.00022191,4]
[365332291,1749604242287,-634.33,0.00022191,4]
[365332292,1749604242297,-460.495953,0.00022191,7]
[365332293,1749604242307,-460.495953,0.00022191,7]
[365332295,1749604242317,-757.39,0.00022191,4]
[365332297,1749604242327,-151.0,0.00022191,7]
[365332299,1749604242336,-151.0,0.00022191,7]
[365332301,1749604242345,-1386.6,0.00022191,4]
[365332303,1749604242355,-450.0,0.00022191,4]
[365332305,1749604242364,-1629.77,0.00022191,4]
[365332306,1749604242374,-460.0,0.00022191,4]
[365332308,1749604242383,-460.0,0.00022191,4]
[365332311,1749604242392,-460.0,0.00022191,4]
[365332313,1749604242401,-460.0,0.00022191,4]
[365332315,1749604242412,-460.0,0.00022191,4]
[365332318,1749604242421,-1458.59,0.00022191,4]
[365332320,1749604242431,-460.0,0.00022191,4]
[365332322,1749604242440,-460.0,0.00022191,2]
[365332324,1749604242449,-460.0,0.00022191,4]
[365332326,1749604242459,-460.0,0.00022191,4]
[365332328,1749604242468,-460.0,0.00022191,4]
[365332331,1749604242477,-460.0,0.00022191,4]
[365332333,1749604242487,-2065.67,0.00022191,4]
[365332335,1749604242497,-460.0,0.00022191,4]
[365332337,1749604242506,-1381.68,0.00022191,4]
[365332339,1749604242523,-460.0,0.00022191,4]
[365332341,1749604242532,-2924.39,0.00022191,4]
[365332343,1749604242541,-460.0,0.00022191,4]
[365332345,1749604242551,-3153.75,0.00022191,4]
[365332347,1749604242561,-151.0,0.00022191,7]
[365332349,1749604242570,-708.66,0.00022191,4]
[365332351,1749604242580,-460.0,0.00022191,4]
[365332354,1749604242590,-151.0,0.00022191,7]
[365332356,1749604242600,-853.41,0.00022191,4]
[365332358,1749604242609,-151.0,0.00022191,7]
[365332360,1749604242618,-1263.11,0.00022191,4]
[365332363,1749604242631,-460.0,0.00022191,4]
[365332365,1749604242641,-460.0,0.00022191,4]
[365332367,1749604242650,-460.0,0.00022191,4]
[365332369,1749604242660,-151.0,0.00022191,7]
[365332371,1749604242670,-460.0,0.00022191,4]
[365332372,1749604242679,-460.0,0.00022191,4]
[365332374,1749604242689,-460.0,0.00022191,4]
[365332376,1749604242698,-151.0,0.00022191,7]
[365332378,1749604242708,-460.0,0.00022191,4]
[365332380,1749604242717,-45805.59,0.000222,2]
[365332382,1749604242727,-151.0,0.000222,7]
[365332384,1749604242736,-151.0,0.000222,7]
[365332386,1749604242745,-151.0,0.000222,7]
[365332388,1749604242756,-151.0,0.000222,7]
[365332390,1749604242765,-151.0,0.000222,7]
[365332392,1749604242775,-151.0,0.000222,7]
[365332394,1749604242785,-151.0,0.000222,7]
[365332396,1749604242794,-166.31295545,0.000222,69]
[365332398,1749604242804,-389.12510712,0.00022221,2]
[365332400,1749604242813,-1331.33742027,0.000224,2]
[365332413,1749604242923,-1306.71257973,0.000224,2]
[365332415,1749604242932,-3124.14,0.00022455,3]
[365332417,1749604242942,-1562.08,0.00022455,3]
[365332419,1749604242951,-781.04,0.00022455,3]
[365332421,1749604242960,-390.52,0.00022455,3]
[365332423,1749604242970,-305.36,0.00022464,2]
[365332425,1749604242980,-460.0,0.00022465,4]
[365332427,1749604242989,-460.0,0.00022465,4]
[365332429,1749604242999,-280.0,0.00022465,4]
[365332431,1749604243009,-270.0,0.00022465,4]
[365332433,1749604243018,-460.0,0.00022465,4]
[365332435,1749604243028,-270.0,0.00022465,4]
[365332437,1749604243037,-460.0,0.00022465,4]
[365332439,1749604243046,-460.0,0.00022465,4]
[365332441,1749604243055,-460.0,0.00022465,4]
[365332443,1749604243064,-460.0,0.00022465,4]
[365332445,1749604243073,-460.0,0.00022465,4]
[365332447,1749604243083,-460.0,0.00022465,4]
[365332448,1749604243092,-460.0,0.00022465,4]
[365332451,1749604243102,-460.0,0.00022465,4]
[365332454,1749604243111,-1316.41,0.00022465,4]
[365332456,1749604243121,-460.0,0.00022465,4]
[365332472,1749604243221,-460.0,0.00022465,4]
[365332474,1749604243231,-460.0,0.00022465,4]
[365332477,1749604243242,-460.0,0.00022465,4]
[365332479,1749604243251,-460.0,0.00022465,4]
[365332481,1749604243261,-460.0,0.00022465,4]
[365332483,1749604243270,-460.0,0.00022465,4]
[365332485,1749604243279,-3287.54,0.00022465,4]
[365332487,1749604243288,-460.0,0.00022465,4]
[365332489,1749604243297,-460.0,0.00022465,4]
[365332491,1749604243306,-460.0,0.00022465,4]
[365332493,1749604243316,-460.0,0.00022465,4]
[365332495,1749604243325,-853.23,0.00022465,4]
[365332497,1749604243334,-460.0,0.00022465,4]
[365332499,1749604243343,-1506.51,0.00022465,4]
[365332501,1749604243351,-460.0,0.00022465,4]
[365332503,1749604243361,-460.0,0.00022465,4]
[365332505,1749604243370,-460.0,0.00022465,4]
[365332507,1749604243379,-699.19,0.00022465,4]
[365332509,1749604243388,-578.08,0.00022465,4]
[365332511,1749604243397,-460.0,0.00022465,4]
[365332513,1749604243406,-460.0,0.00022465,4]
[365332515,1749604243415,-460.0,0.00022465,4]
[365332517,1749604243424,-460.0,0.00022465,4]
[365332519,1749604243433,-463.28,0.00022465,4]
[365332521,1749604243443,-460.0,0.00022465,4]
[365332522,1749604243452,-460.0,0.00022465,4]
[365332525,1749604243462,-460.0,0.00022465,4]
[365332526,1749604243471,-3493.75,0.00022465,4]
[365332528,1749604243481,-460.0,0.00022465,4]
[365332530,1749604243490,-245.87177744,0.00022465,4]
[365332532,1749604243500,-460.0,0.00022465,4]
[365332534,1749604243509,-634.33,0.00022465,4]
[365332536,1749604243521,-757.39,0.00022465,4]
[365332539,1749604243531,-1386.6,0.00022465,4]
[365332540,1749604243541,-1629.77,0.00022465,4]
[365332542,1749604243550,-460.0,0.00022465,4]
[365332544,1749604243560,-460.0,0.00022465,4]
[365332547,1749604243570,-209.83253736,0.00022465,4]
[365332548,1749604243580,-280.0,0.00022465,4]
[365332550,1749604243590,-460.0,0.00022465,4]
[365332553,1749604243601,-1458.59,0.00022465,4]
[365332555,1749604243611,-460.0,0.00022465,4]
[365332557,1749604243620,-460.0,0.00022465,2]
[365332559,1749604243630,-460.0,0.00022465,4]
[365332561,1749604243639,-460.0,0.00022465,4]
[365332563,1749604243649,-460.0,0.00022465,4]
[365332565,1749604243659,-460.0,0.00022465,4]
[365332567,1749604243669,-2065.67,0.00022465,4]
[365332569,1749604243679,-182.81,0.00022465,4]
[365332571,1749604243688,-1381.68,0.00022465,4]
[365332573,1749604243697,-460.0,0.00022465,4]
[365332575,1749604243707,-2924.39,0.00022465,4]
[365332577,1749604243716,-460.0,0.00022465,4]
[365332579,1749604243727,-3153.75,0.00022465,4]
[365332581,1749604243736,-708.66,0.00022465,4]
[365332583,1749604243745,-460.0,0.00022465,4]
[365332586,1749604243756,-853.41,0.00022465,4]
[365332589,1749604243766,-1263.11,0.00022465,4]
[365332592,1749604243775,-460.0,0.00022465,4]
[365332594,1749604243784,-460.0,0.00022465,4]
[365332596,1749604243794,-460.0,0.00022465,4]
[365332598,1749604243803,-460.0,0.00022465,4]
[365332600,1749604243812,-460.0,0.00022465,4]
[365332602,1749604243821,-460.0,0.00022465,4]
[365332603,1749604243830,-309.8421927,0.00022466,2]
[365332606,1749604243840,-153.0,0.00022466,2]
[365332608,1749604243849,-176.8341807,0.00022466,2]
[365332610,1749604243859,-158.7504224,0.00022466,2]
[365332611,1749604243867,-153.0,0.00022466,2]
[365332613,1749604243876,-1193.5933069,0.00022466,2]
[365332615,1749604243885,-153.0,0.00022466,2]
[365332617,1749604243895,-176.8341807,0.00022466,2]
[365332619,1749604243905,-158.7504224,0.00022466,2]
[365332621,1749604243915,-153.0,0.00022466,2]
[365332623,1749604243924,-176.8341807,0.00022466,2]
[365332626,1749604243934,-353.6683614,0.00022466,2]
[365332628,1749604243943,-1500.0,0.00022468,2]
[365332630,1749604243952,-1500.0,0.00022468,2]
[365332632,1749604243961,-2078.82461537,0.00022475,2]
[365332634,1749604243970,-151.0,0.00022475,7]
[365332636,1749604243979,-151.0,0.00022475,7]
[365332638,1749604243988,-151.0,0.00022475,7]
[365332640,1749604243997,-1000.0,0.00022521,2]
[365332642,1749604244008,-1200.0,0.00022521,2]
[365332644,1749604244017,-1001.49859335,0.00022521,2]
[365332646,1749604244026,-1000.0,0.00022521,2]
[365332648,1749604244035,-1000.0,0.00022521,2]
[365332650,1749604244044,-1000.0,0.00022521,2]
[365332652,1749604244053,-49027.53482789,0.00022552,2]
[365332654,1749604244062,-260.95645424,0.00022637,2]
[365332656,1749604244072,-749.56145164,0.000227,2]
[365332658,1749604244081,-250.0,0.00022739,4]
[365332660,1749604244090,-460.0,0.00022739,4]
[365332662,1749604244099,-151.0,0.00022739,7]
[365332664,1749604244109,-460.0,0.00022739,4]
[365332666,1749604244118,-151.0,0.00022739,7]
[365332668,1749604244128,-151.0,0.00022739,7]
[365332670,1749604244137,-153.203852,0.00022739,7]
[365332672,1749604244146,-240.0,0.00022739,4]
[365332674,1749604244156,-240.0,0.00022739,4]
[365332675,1749604244165,-460.0,0.00022739,4]
[365332677,1749604244174,-151.0,0.00022739,7]
[365332679,1749604244183,-151.0,0.00022739,7]
[365332681,1749604244192,-215.0265787,0.00022739,4]
[365332683,1749604244201,-460.0,0.00022739,4]
[365332685,1749604244210,-460.0,0.00022739,4]
[365332687,1749604244220,-460.0,0.00022739,4]
[365332689,1749604244229,-460.0,0.00022739,4]
[365332691,1749604244238,-151.0,0.00022739,7]
[365332693,1749604244247,-1316.41,0.00022739,4]
[365332695,1749604244256,-460.0,0.00022739,4]
[365332697,1749604244265,-460.0,0.00022739,4]
[365332699,1749604244275,-250.0,0.00022739,4]
[365332701,1749604244285,-460.0,0.00022739,4]
[365332703,1749604244294,-151.0,0.00022739,7]
[365332705,1749604244303,-151.0,0.00022739,7]
[365332707,1749604244312,-460.0,0.00022739,4]
[365332709,1749604244321,-460.0,0.00022739,4]
[365332711,1749604244331,-460.0,0.00022739,4]
[365332713,1749604244340,-3287.54,0.00022739,4]
[365332715,1749604244349,-151.0,0.00022739,7]
[365332717,1749604244357,-460.0,0.00022739,4]
[365332719,1749604244366,-460.0,0.00022739,4]
[365332721,1749604244375,-2396.208569,0.00022739,2]
[365332723,1749604244384,-2396.208569,0.00022739,2]
[365332725,1749604244393,-460.0,0.00022739,4]
[365332727,1749604244402,-151.0,0.00022739,7]
[365332729,1749604244413,-460.0,0.00022739,4]
[365332731,1749604244422,-853.23,0.00022739,4]
[365332733,1749604244431,-460.0,0.00022739,4]
[365332735,1749604244440,-1506.51,0.00022739,4]
[365332737,1749604244448,-460.0,0.00022739,4]
[365332739,1749604244458,-460.0,0.00022739,4]
[365332741,1749604244467,-460.0,0.00022739,4]
[365332743,1749604244476,-699.19,0.00022739,4]
[365332745,1749604244485,-578.08,0.00022739,4]
[365332747,1749604244494,-151.0,0.00022739,7]
[365332749,1749604244505,-460.0,0.00022739,4]
[365332751,1749604244514,-460.0,0.00022739,4]
[365332753,1749604244526,-460.0,0.00022739,4]
[365332755,1749604244535,-151.0,0.00022739,7]
[365332757,1749604244544,-460.0,0.00022739,4]
[365332759,1749604244553,-460.0,0.00022739,4]
[365332761,1749604244563,-460.0,0.00022739,4]
[365332763,1749604244573,-460.0,0.00022739,4]
[365332765,1749604244582,-3493.75,0.00022739,4]
[365332767,1749604244592,-460.0,0.00022739,4]
[365332768,1749604244602,-460.0,0.00022739,4]
[365332770,1749604244611,-634.33,0.00022739,4]
[365332772,1749604244620,-460.495953,0.00022739,7]
[365332774,1749604244630,-460.495953,0.00022739,7]
[365332776,1749604244639,-151.0,0.00022739,7]
[365332777,1749604244650,-757.39,0.00022739,4]
[365332778,1749604244659,-199.097466,0.00022739,7]
[365332779,1749604244669,-1386.6,0.00022739,4]
[365332780,1749604244678,-1629.77,0.00022739,4]
[365332781,1749604244687,-460.0,0.00022739,4]
[365332783,1749604244697,-460.0,0.00022739,4]
[365332785,1749604244707,-460.0,0.00022739,4]
[365332787,1749604244717,-1458.59,0.00022739,4]
[365332789,1749604244726,-460.0,0.00022739,4]
[365332791,1749604244735,-460.0,0.00022739,2]
[365332793,1749604244745,-593.62550337,0.00022739,4]
[365332795,1749604244755,-460.0,0.00022739,4]
[365332798,1749604244765,-460.0,0.00022739,4]
[365332800,1749604244774,-460.0,0.00022739,4]
[365332802,1749604244784,-2065.67,0.00022739,4]
[365332804,1749604244792,-1381.68,0.00022739,4]
[365332806,1749604244802,-460.0,0.00022739,4]
[365332808,1749604244812,-2924.39,0.00022739,4]
[365332810,1749604244821,-460.0,0.00022739,4]
[365332812,1749604244830,-3153.75,0.00022739,4]
[365332814,1749604244839,-708.66,0.00022739,4]
[365332816,1749604244849,-460.0,0.00022739,4]
[365332818,1749604244858,-151.0,0.00022739,7]
[365332820,1749604244867,-853.41,0.00022739,4]
[365332822,1749604244876,-1263.11,0.00022739,4]
[365332824,1749604244886,-460.0,0.00022739,4]
[365332835,1749604244974,-460.0,0.00022739,4]
[365332837,1749604244983,-460.0,0.00022739,4]
[365332839,1749604244993,-460.0,0.00022739,4]
[365332841,1749604245003,-460.0,0.00022739,4]
[365332843,1749604245012,-460.0,0.00022739,4]
[365332845,1749604245022,-160.0,0.0002278,2]
[365332847,1749604245031,-11858.11761888,0.0002278,2]
[365332849,1749604245040,-424.12530924,0.0002278,2]
[365332851,1749604245049,-160.0,0.0002278,2]
[365332853,1749604245058,-229.6792923,0.0002278,2]
[365332855,1749604245067,-213.1263252,0.0002278,2]
[365332857,1749604245076,-160.0,0.0002278,2]
[365332859,1749604245085,-160.0,0.0002278,2]
[365332861,1749604245094,-160.0,0.0002278,2]
[365332863,1749604245103,-160.0,0.0002278,2]
[365332865,1749604245113,-160.0,0.0002278,2]
[365332867,1749604245122,-834.9046531,0.0002278,2]
[365332869,1749604245131,-160.0,0.0002278,2]
[365332871,1749604245140,-842.5625,0.0002278,2]
[365332873,1749604245150,-151.0,0.000228,9]
[365332875,1749604245159,-587.0,0.00022862,2]
[365332877,1749604245168,-720.89,0.000229,7]
[365332879,1749604245177,-1768.96,0.000229,7]
[365332881,1749604245186,-153.0,0.0002296,2]
[365332883,1749604245195,-153.0,0.0002296,2]
[365332885,1749604245204,-153.0,0.0002296,2]
[365332887,1749604245213,-153.0,0.0002296,2]
[365332889,1749604245222,-153.0,0.0002296,2]
[365332891,1749604245231,-153.0,0.0002296,2]
[365332893,1749604245240,-153.0,0.0002296,2]
[365332895,1749604245251,-153.0,0.0002296,2]
[365332897,1749604245260,-153.0,0.0002296,2]
[365332899,1749604245269,-153.0,0.0002296,2]
[365332901,1749604245278,-153.0,0.0002296,2]
[365332903,1749604245287,-153.0,0.0002296,2]
[365332905,1749604245296,-153.0,0.0002296,2]
[365332907,1749604245306,-153.0,0.0002296,2]
[365332909,1749604245315,-153.0,0.00022962,2]
[365332911,1749604245324,-153.0,0.00022962,2]
[365332913,1749604245333,-153.0,0.00022962,2]
[365332915,1749604245342,-153.0,0.00022962,2]
[365332917,1749604245352,-153.0,0.00022962,2]
[365332919,1749604245361,-153.0,0.00022962,2]
[365332921,1749604245370,-153.0,0.00022962,2]
[365332923,1749604245380,-153.0,0.00022962,2]
[365332925,1749604245388,-153.0,0.00022962,2]
[365332927,1749604245398,-153.0,0.00022962,2]
[365332929,1749604245408,-153.0,0.00022962,2]
[365332932,1749604245417,-153.0,0.00022962,2]
[365332934,1749604245426,-153.0,0.00022962,2]
[365332936,1749604245436,-153.0,0.00022962,2]
[365332938,1749604245445,-153.0,0.00022962,2]
[365332940,1749604245454,-153.0,0.00022962,2]
[365332942,1749604245463,-153.0,0.00022962,2]
[365332944,1749604245473,-153.0,0.00022962,2]
[365332946,1749604245482,-153.0,0.00022962,2]
[365332948,1749604245491,-153.0,0.00022962,2]
[365332950,1749604245500,-153.0,0.00022962,2]
[365332952,1749604245508,-153.0,0.00022962,2]
[365332954,1749604245522,-153.0,0.00022962,2]
[365332956,1749604245531,-153.0,0.00022962,2]
[365332958,1749604245541,-153.0,0.00022962,2]
[365332960,1749604245551,-153.0,0.00022962,2]
[365332962,1749604245561,-153.0,0.00022962,2]
[365332964,1749604245571,-153.0,0.00022962,2]
[365332966,1749604245580,-153.0,0.00022962,2]
[365332968,1749604245589,-153.0,0.00022962,2]
[365332970,1749604245599,-153.0,0.00022962,2]
[365332972,1749604245609,-153.0,0.00022962,2]
[365332974,1749604245619,-153.0,0.00022962,2]
[365332976,1749604245628,-153.0,0.00022962,2]
[365332978,1749604245638,-153.0,0.00022962,2]
[365332980,1749604245647,-153.0,0.00022962,2]
[365332982,1749604245656,-153.0,0.00022962,2]
[365332984,1749604245665,-153.0,0.00022962,2]
[365332986,1749604245674,-153.0,0.00022962,2]
[365332988,1749604245684,-153.0,0.00022962,2]
[365332990,1749604245693,-153.0,0.00022962,2]